Cogmind - Beta 14 @@@ ROGUE MODE // 2024.08.09 @ 04:39:56 Player: Hiredgoonthug Result: Destroyed by as-20964 with Assembled Rifle Performance ------------- Evolutions (1) 500 Regions Visited (4) 800 Robots Destroyed (37) 185 Value Destroyed (1108) 1108 Prototype IDs (2) 40 Alien Tech Used (0) 0 Bonus (0) 0 TOTAL SCORE: 2633 Bonus ------- None Cogmind --------- Core Integrity 0/400 Matter 8/300 Energy 265/265 System Corruption 0% Temperature Cool (0) Movement Core (1600) Ox31 Location -9/Mines Parts ------- > --- POWER (1) -------- Improved Ion Engine > --- PROPULSION (3) --- (None) > --- UTILITY (3) ------ Huge Storage Unit Experimental Sensor Array Utility Shielding > --- WEAPON (2) ------- Grenade Launcher Grenade Launcher > --- INVENTORY (25) --- Improved Ion Engine Light Nuclear Core Heat Sink Heat Sink Huge Storage Unit High-capacity Battery (250) Large Matter Pod (150) Improved Terrain Scanner Medium Laser Advanced Beam Cannon Advanced Beam Cannon Rocket Launcher Peak State ------------ > --- POWER ------------ Improved Ion Engine > --- PROPULSION ------- Light Treads > --- UTILITY ---------- Huge Storage Unit Experimental Sensor Array Utility Shielding > --- WEAPON ----------- Grenade Launcher Grenade Launcher > --- INVENTORY -------- Improved Ion Engine Light Nuclear Core Heat Sink Heat Sink Huge Storage Unit High-capacity Battery Large Matter Pod Improved Terrain Scanner Medium Laser Advanced Beam Cannon Advanced Beam Cannon Rocket Launcher [Rating: 18] Favorites ----------- Power Ion Engine Engine Ion Engine Propulsion Light Treads Treads Light Treads Leg Aluminum Leg Utility Huge Storage Unit Device Heat Sink Storage Huge Storage Unit Protection Light Armor Plating Weapon Grenade Launcher Energy Gun Medium Laser Energy Cannon Advanced Beam Cannon Ballistic Gun Assault Rifle Launcher Grenade Launcher Build | -11 -10 -10 -9 -9 ------- Run | Yrd Mat Min Mat Min Slots Evolved 2 | . . . 2 . Power . | . . . . . Propulsion 1 | . . . 1 . Utility 1 | . . . 1 . Weapon . | . . . . . Parts Attached 46 | 7 6 4 19 10 Power 5 | 1 1 1 1 1 Engine 5 | 1 1 1 1 1 Core . | . . . . . Reactor . | . . . . . Propulsion 11 | 2 . 1 7 1 Treads 10 | 2 . 1 6 1 Leg 1 | . . . 1 . Wheel . | . . . . . Hover . | . . . . . Flight . | . . . . . Utility 9 | 2 2 . 3 2 Device 4 | 1 . . 1 2 Storage 2 | 1 1 . . . Processor . | . . . . . Hackware . | . . . . . Protection 3 | . 1 . 2 . Artifact . | . . . . . Weapon 21 | 2 3 2 8 6 Energy Gun 5 | 1 2 . 2 . Energy Cannon 4 | . . . 3 1 Ballistic Gun 4 | 1 . . 3 . Ballistic Cannon . | . . . . . Launcher 8 | . 1 2 . 5 Special Weapon . | . . . . . Impact Weapon . | . . . . . Slashing Weapon . | . . . . . Piercing Weapon . | . . . . . Special Melee Weapon . | . . . . . Unidentified Prototypes 2 | . . . 1 1 Parts Lost 14 | . 1 1 4 8 Power 1 | . . . . 1 Propulsion 7 | . . 1 2 4 Utility 3 | . . . 2 1 Weapon 3 | . 1 . . 2 Highest Loss Streak 7 | . 1 1 1 7 To Critical Strikes . | . . . . . Average Slot Usage (%) 98 | . 100 100 99 88 Engine 12 | . 14 14 11 10 Treads 27 | . 28 28 30 23 Device 4 | . 3 . 10 10 Storage 12 | . 14 14 11 11 Protection 11 | . 10 14 10 11 Energy Gun 7 | . 16 . 5 . Energy Cannon 4 | . . . 16 12 Ballistic Gun 3 | . 8 . . . Launcher 10 | . 3 27 . 9 Peak Build Rating 18 | 7 8 8 17 18 Average Rating 10 | 5 7 7 14 14 On Entrance 8 | . 7 8 8 17 Naked Turns . | . . . . . Heaviest Build 99 | 13 93 94 99 97 Greatest Support 60 | 40 40 40 60 60 Greatest Overweight (x) 4 | . 2 2 2 4 Average Overweight (x) 1 | . . 2 1 1 Largest Inventory Capacity 25 | 8 25 25 25 25 Average Capacity 22 | 7 19 25 25 25 Most Carried 25 | 5 16 16 25 25 Average Carried 15 | 3 11 15 20 17 Final Capacity 25 | 8 25 25 25 25 Final Carried 25 | 5 15 15 25 12 Class Distribution -------------------- 76% | Mutant 23% | Scavenger-Mutant Dominant Class ---------------- Mutant | -10/Materials Mutant | -10/Mines Scavenger-Mutant | -9/Materials Scavenger-Mutant | -9/Mines Resources | -11 -10 -10 -9 -9 ----------- Run | Yrd Mat Min Mat Min Matter Collected 963 | 209 377 66 301 10 Remotely . | . . . . . Salvage Created 1207 | 29 420 136 563 59 Parts 77 | 2 30 12 29 4 Haulers Intercepted 1 | . 1 . . . Recyclers Shooed . | . . . . . Parts Field Recycled . | . . . . . Retrieved Matter . | . . . . . Parts Self-Destructed . | . . . . . Prevented . | . . . . . Kills | -11 -10 -10 -9 -9 ------- Run | Yrd Mat Min Mat Min Combat Hostiles Destroyed 36 | . 8 6 12 10 Guns 8 | . 7 . 1 . Cannons 11 | . . . 10 1 AOE 16 | . 1 6 . 9 Classes Destroyed 12 | 1 6 1 2 2 Worker 3 | . . 1 1 1 Builder 2 | . 1 . . 1 Tunneler 1 | 1 . . . . Hauler 1 | . 1 . . . Recycler 1 | . 1 . . . Watcher 1 | . 1 . . . Swarmer 3 | . 3 . . . Grunt 17 | . 5 6 6 . Duelist 1 | . . . 1 . Sentry 5 | . . . 5 . Demolisher 2 | . . . . 2 Assembled 8 | . . . . 8 Best Kill Streak 7 | 1 2 3 4 7 Combat Bots Only 7 | . 2 2 4 7 Max Kills in Single Turn 3 | 1 1 2 1 3 Gunslinging . | . . . . . Exploded 2 | . 1 2 . 2 Melee . | . . . . . Uniques/NPCs Destroyed . | . . . . . Combat | -11 -10 -10 -9 -9 -------- Run | Yrd Mat Min Mat Min Hostile Shots Fired 192 | . 56 21 71 44 Missed 49 | . 16 7 17 9 Damage Taken 2360 | . 501 257 740 862 Core 500 | . 66 21 113 300 Absorbed by Shields . | . . . . . Redirected to Shielding 7 | . . . . 7 Core Remaining (%) 82 | 100 . 65 . . Volleys Fired 115 | 2 49 11 38 15 Largest 2 | 2 2 2 2 2 Hottest 136 | 70 70 100 136 136 Shots Fired 216 | 4 87 22 76 27 Gun 113 | 4 86 9 14 . Cannon 66 | . . . 62 4 Launcher 37 | . 1 13 . 23 Special . | . . . . . Kinetic 50 | 2 48 . . . Thermal 129 | 2 38 9 76 4 Explosive 37 | . 1 13 . 23 Electromagnetic . | . . . . . Robot Hit Streak 20 | 2 18 5 20 4 Robot Miss Streak 4 | 1 3 3 4 1 Penetration Max . | . . . . . Secondary Targets 1 | . 1 . . . Max Gunslinging Chain 1 | . 1 . . . Shots Hit Robots 125 | 2 48 6 56 13 Core Hits 75 | 1 20 15 16 23 Critical Kills 1 | . 1 . . . Critical Parts Destroyed . | . . . . . Critical Strikes 2 | . 2 . . . Burn 1 | . 1 . . . Destroy 1 | . 1 . . . Melee Attacks . | . . . . . Impact . | . . . . . Slashing . | . . . . . Piercing . | . . . . . Sneak Attacks . | . . . . . Combat Hostiles . | . . . . . Follow-up Attacks . | . . . . . Damage Inflicted 3169 | 24 677 588 1091 789 Guns 845 | 24 646 37 138 . Cannons 987 | . . . 947 40 Explosions 1303 | . 14 551 . 738 Melee . | . . . . . Ramming 34 | . 17 . 6 11 Kinetic 332 | 12 320 . . . Thermal 1500 | 12 326 37 1085 40 Explosive 1303 | . 14 551 . 738 Electromagnetic . | . . . . . Impact . | . . . . . Slashing . | . . . . . Piercing . | . . . . . Highest Corruption . | . . . . . Average Corruption . | . . . . . Corruption Purged . | . . . . . Corruption Blocked . | . . . . . Overload Shots . | . . . . . Overflow Damage 56 | . . 4 . 52 Projectiles . | . . . . . Explosions 56 | . . 4 . 52 Melee . | . . . . . Knockbacks 1 | . . . 1 . Impact 1 | . . . 1 . Kinetic . | . . . . . Secondary . | . . . . . Self-Inflicted Damage 71 | . . 68 . 3 Shots 4 | . . 3 . 1 Rammed 4 | . 2 . 1 1 Targets Rammed 4 | . 2 . 1 1 Kicked . | . . . . . Crushed . | . . . . . Highest Temperature 391 | 18 352 266 391 39 Average Temperature 122 | 10 123 102 139 17 Received Heat Transfer 686 | . 261 108 297 20 Effects 6 | . 3 . 3 . Shutdowns 3 | . 1 . 2 . Energy Bleed 1 | . 1 . . . Short Circuit 1 | . 1 . . . Damage (minor) 1 | . . . 1 . Siege Activations . | . . . . . Robots Corrupted . | . . . . . Combat Hostiles . | . . . . . Parts Fried . | . . . . . Impact Corruptions . | . . . . . Robots Melted 1 | . . . 1 . Combat Hostiles 1 | . . . 1 . Parts Melted 8 | . 2 . 6 . Heat Transferred 3367 | 37 1036 111 2109 74 Parts Sabotaged . | . . . . . Parts Stolen . | . . . . . Parts Stripped . | . . . . . Power Chain Reactions . | . . . . . Alert | -11 -10 -10 -9 -9 ------- Run | Yrd Mat Min Mat Min Peak Influence 299 | 5 160 137 299 112 Initial 77 | . 3 5 9 77 Average 63 | 1 49 47 106 74 Maximum Alert Level 1 | . . . 1 . Low Security (%) 96 | 100 100 100 81 100 Level 1 3 | . . . 18 . Level 2 . | . . . . . Level 3 . | . . . . . Level 4 . | . . . . . Level 5 . | . . . . . High Security . | . . . . . Max Security . | . . . . . Squads Dispatched 2 | . 1 . 1 . Investigation . | . . . . . Extermination . | . . . . . Reinforcement 2 | . 1 . 1 . Assault . | . . . . . Garrison . | . . . . . Intercept . | . . . . . Searches Triggered . | . . . . . Construction Impeded . | . . . . . Haulers Reinforced . | . . . . . Active Scanning Responses . | . . . . . Cargo Convoy Interrupts . | . . . . . Stealth | -11 -10 -10 -9 -9 --------- Run | Yrd Mat Min Mat Min Distress Signals 4 | . 2 . 2 . Communications Jammed . | . . . . . Distress Signals . | . . . . . Times Spotted 56 | . 18 6 16 16 Peak Tracking Total 11 | . 4 2 7 11 Tactical Retreats 3 | . . . 2 1 Traps | -11 -10 -10 -9 -9 ------- Run | Yrd Mat Min Mat Min Traps Triggered 1 | . . . 1 . Indirectly . | . . . . . Trap Hack Attempts . | . . . . . Triggered . | . . . . . Disarmed . | . . . . . Reprogrammed . | . . . . . Reused . | . . . . . Traps Extracted . | . . . . . Installed . | . . . . . Triggered . | . . . . . Machines | -11 -10 -10 -9 -9 ---------- Run | Yrd Mat Min Mat Min Machines Disabled . | . . . . . Max in Single Turn . | . . . . . Machines Repaired . | . . . . . Machines Dismantled . | . . . . . Machines Sabotaged . | . . . . . Overloaded Fab Kills . | . . . . . Hacking | -11 -10 -10 -9 -9 --------- Run | Yrd Mat Min Mat Min Machines Accessed 10 | . 6 1 3 . Terminals 9 | . 5 1 3 . Fabricators . | . . . . . Repair Stations . | . . . . . Recycling Units 1 | . 1 . . . Scanalyzers . | . . . . . Garrison Access . | . . . . . Total Hacks 30 | . 17 3 10 . Successful 13 | . 5 1 7 . Failed 17 | . 12 2 3 . Catastrophic 3 | . 2 1 . . Database Lockouts . | . . . . . Manual 22 | . 10 2 10 . Terminals 28 | . 15 3 10 . Fabricators . | . . . . . Repair Stations . | . . . . . Recycling Units 2 | . 2 . . . Scanalyzers . | . . . . . Garrison Access . | . . . . . Terminal Hacks 8 | . 2 1 5 . Record 1 | . 1 . . . Robot Analysis 3 | . . . 3 . Branch Access Points 2 | . 1 . 1 . Terminal Index 1 | . . . 1 . Zone Layout 1 | . . 1 . . Fabricator Hacks . | . . . . . Repair Station Hacks . | . . . . . Recycling Unit Hacks 1 | . 1 . . . Retrieve Components 1 | . 1 . . . Scanalyzer . | . . . . . Garrison Access Hacks . | . . . . . Unauthorized Hacks 4 | . 2 . 2 . Terminals 4 | . 2 . 2 . Botnet 4 | . 2 . 2 . Fabricators . | . . . . . Repair Stations . | . . . . . Recycling Units . | . . . . . Scanalyzers . | . . . . . Garrison Access . | . . . . . Data Cores Recovered . | . . . . . Used . | . . . . . Hacking Detections 8 | . 4 1 3 . Full Trace Events 2 | . 1 1 . . Feedback Events . | . . . . . Feedback Blocked . | . . . . . Robot Schematics Acquired . | . . . . . Robots Built . | . . . . . Authchips . | . . . . . Time . | . . . . . Total Robot Build Rating . | . . . . . Part Schematics Acquired . | . . . . . Parts Built . | . . . . . Authchips . | . . . . . Time . | . . . . . Total Part Build Rating . | . . . . . Parts Repaired . | . . . . . Time . | . . . . . Parts Recycled . | . . . . . Recycled Matter . | . . . . . Retrieved Matter . | . . . . . Retrieved Components 1 | . 1 . . . Parts Scanalyzed . | . . . . . Part Schematics Acquired . | . . . . . Parts Damaged . | . . . . . Bothacking | -11 -10 -10 -9 -9 ------------ Run | Yrd Mat Min Mat Min Used RIF Installer . | . . . . . Robots Hacked . | . . . . . Non-combat . | . . . . . Combat . | . . . . . Robot Hacks Applied . | . . . . . Relay Couplers Released . | . . . . . Fabnet Peak Effective % . | . . . . . Robots Rewired . | . . . . . Allies Hacked . | . . . . . Hacks Repelled . | . . . . . Allies | -11 -10 -10 -9 -9 -------- Run | Yrd Mat Min Mat Min Total Allies . | . . . . . Largest Group . | . . . . . Highest-Rated Group . | . . . . . Highest-Rated Ally . | . . . . . Total Orders . | . . . . . Ally Attacks . | . . . . . Total Damage . | . . . . . Kills . | . . . . . Allies Corrupted . | . . . . . Allies Melted . | . . . . . Intel | -11 -10 -10 -9 -9 ------- Run | Yrd Mat Min Mat Min Robot Analysis Total 3 | . . . 3 . Derelict Logs Recovered 2 | . . 2 . . Drone Launches . | . . . . . Drone Recoveries . | . . . . . Exploration | -11 -10 -10 -9 -9 ------------- Run | Yrd Mat Min Mat Min Turns Passed 4274 | 94 1557 1226 921 476 Spaces Moved 1409 | 49 580 372 267 141 Core 4 | 4 . . . . Treads 1405 | 45 580 372 267 141 Legs . | . . . . . Wheels . | . . . . . Hover . | . . . . . Flight . | . . . . . Fastest Speed 50 | 50 160 320 240 240 Average Speed 266 | 151 238 320 258 291 Slowest Speed 480 | 160 320 320 320 480 Overloaded Moves . | . . . . . Propulsion Burnouts . | . . . . . Robots Hopped . | . . . . . Cave-ins Triggered . | . . . . . Exploration Rate (%) 38 | 6 71 59 30 27 Regions Visited 4 Branch Regions 2 Pre-discovered Areas 1 | . . 1 . . Known Exits Taken 2 | . 1 . 1 . Unknown Exits Taken 2 | 1 . 1 . . Scrap Searched 1 | . . . . 1 Spaces Dug . | . . . . . Terrain Destroyed 217 | . 5 78 . 134 Melee . | . . . . . Projectile 1 | . . . . 1 AOE 216 | . 5 78 . 133 Terrain Rammed . | . . . . . Walls Destroyed . | . . . . . Machines Disabled . | . . . . . Actions | -11 -10 -10 -9 -9 --------- Run | Yrd Mat Min Mat Min Total 1700 | 62 660 387 413 178 Wait 91 | . 12 . 79 . Move 1405 | 48 579 371 266 141 Hop . | . . . . . Pick Up 26 | 5 10 . 10 1 Fast Attach 11 | 7 . . 3 1 Attach 11 | . 1 2 4 4 Detach 1 | . . 1 . . Swap 24 | . 5 2 12 5 Drop 12 | . 2 . . 10 Fire 115 | 2 49 11 38 15 Melee . | . . . . . Ram . | . . . . . Kick . | . . . . . Crush 4 | . 2 . 1 1 Escape Stasis . | . . . . . Rewire . | . . . . . Trap . | . . . . . Miscellaneous . | . . . . . Route ------- -11/Scrapyard -10/Materials (discovered 5 exits: *Mat x3 / *Min x2) -10/Mines -9/Materials (discovered 3 exits: *Min x2 / Sto) -9/Mines (discovered 1 exit: [*Mat]) History --------- Turn | Location | Event 6 | -11/Scrapyard | Discovered new exit (range 16) 95 | -11/Scrapyard | Entered Materials 275 | -10/Materials | Discovered new exit (range 12) 303 | -10/Materials | Identified exit to Mines 305 | -10/Materials | Build established: Mutant 321 | -10/Materials | Discovered new exit (range 5) 609 | -10/Materials | Discovered new exit (range 14) 835 | -10/Materials | Discovered new exit (range 15) 1652 | -10/Materials | Entered Mines 2504 | -10/Mines | Learned location of Mines (-9) 2539 | -10/Mines | Learned Materials garrison access intel 2625 | -10/Mines | Discovered new exit (range 14) 2878 | -10/Mines | Entered Materials 2878 | -9/Materials | Evolved 2 slots: Propulsion x1, Utility x1 3357 | -9/Materials | Build established: Scavenger-Mutant 3639 | -9/Materials | Identified exit to Mines 3639 | -9/Materials | Identified exit to Storage 3799 | -9/Materials | Entered Mines 3954 | -9/Mines | Discovered new exit (range 9) 4054 | -9/Mines | Assembled infested the area 4059 | -9/Mines | Assisted by a Guerilla fighting off Assembled 4088 | -9/Mines | Core integrity fell below 50% 4097 | -9/Mines | Core integrity fell below 20% 4124 | -9/Mines | Lost 7 parts (1p3n1u2w) 4129 | -9/Mines | Destroyed 7 combat bots 4187 | -9/Mines | Found a damaged Exp. Sensor Array with a note attached 4196 | -9/Mines | Found Prototype Device 4196 | -9/Mines | Identified Exp. Sensor Array 4275 | -9/Mines | Destroyed by as-20964 with Assembled Rifle Last Messages --------------- 04196_ Acquired Prototype Device. 04196_ Identified Exp. Sensor Array. 04197_ U-05 Engineer builds a Wall. 04211_ U-05 Engineer lays Concrete. 04217_ U-05 Engineer builds a Wall. 04222_ U-05 Engineer lays Concrete. 04227_ K-01 Serf collects debris. 04229_ Destroyed Asb. Hover Unit. 04229_ as-21492 destroyed. 04231_ The unstable cave ceiling collapses. 04231_ K-01 Serf collects debris. 04233_ The unstable cave ceiling collapses. 04236_ K-01 Serf collects debris. 04236_ K-01 Serf destroyed. 04242_ The unstable cave ceiling collapses. 04265_ R-06 Scavenger collects Med. Matter Pod. 04270_ R-06 Scavenger collects Terrain Scanner. 04271_ Slammed into as-20964. 04271_ Lgt. Treads destroyed. 04273_ R-06 Scavenger collects Wheel. Map ----- +----------------------------------------------------+ | ???# """ < #???????????????? | | ???# """ #???????????????? | | ???# #???????????????? | | ???# """ """ #######?????????? | | ???# """ """ ##????????? | | ???# """ """ ##???????? | | ???# #### #####???? | | ???######### ##?## #???? | | ???????????# #### ### ##### | | ???????????# # | | ???????????####### #### | | ????????????????## ### ## | | ???????????????## ## ## | | ????????######## ## | | ????????# ######## | | ????????# ##### # #??????? | | ????????# #???##= #??????? | | ????????# #????# ???????? | | ????????# #????? #????????? | | ????????# ###### #?????????? | | ??####### ## ## ##????????? | | ?###### # ## ## ##???????? | | ## ## ## #???????? | | ## # #### #???????? | | ## ar = !#???????? | | ### @ ## ##???????? | | # # #### ####????????? | | # # = ## ##???????????? | | # #= ### #????????????? | | # ## ###????????????? | | # ### ###??????????????? | | ## # #?# #????????????????? | | ?# #?# #????????????????? | | ? # #? ????????????????? | | ## #? ????????????????? | | ?# # # # "????????????????? | | ? # "????????????????? | | ? # "????????????????? | | # ?????????????????? | | ? ## ?????????????????? | | ??? ??? ?????????????????? | | ???? ????????????????????????? | | ???? ????????????????????????? | | ??????????????????????????????? | | ??????????????????????????????? | | ??????????????????????????????? | | ??????????????????????????????? | | ??????????????????????????????? | | ??????????????????????????????? | | ??????????????????????????????? | +----------------------------------------------------+ Best States ------------- Heat Dissipation 38 Energy Generation 12 Energy Capacity 265 Matter Stores 300 Matter Capacity 300 Sight Range 16 Robot Scan Range 20 Terrain Scan Density 10 Armor Coverage 150 Utility Shielding 33 Evasion (%) 40 Recoil Reduction 3 Item Schematics ----------------- None Robot Schematics ------------------ None Fabricated ------------ Nothing Alien Tech Used ----------------- None Achievements -------------- Armchair Analyst root@ Challenges ------------ None Game ------ Seed ReinforcedGuidanceCore Manual? 0 Play Time 00:28:43 Cumulative 17.9 hours Start 2024.08.09 @ 04:06:34 End 2024.08.09 @ 04:39:56 Sessions 1 Manual Loads 0 Difficulty Rogue Special Mode None Game No. 21 Rogue 21 Adventurer 0 Explorer 0 Win Type - Total 0 Types 0/0/0/0/0/0/0/0/0 Lore% 11 Gallery% 22 Achievement% 26 Wizard Run 0 Options --------- Layout 0 ASCII 0 Keyboard 0 Movement Mouse Keybinds 0 Fullscreen 2 Font 24/Terminus Map View 76x50 Zoom Use 0% Tactical HUD 1 Map Filters NONE Filters NONE Steam 1 RUN: 15d618be-5668-4ba7-b8ca-6fa8a7017066